bitfinex-derivatives/quotes_BTCF0:USTF0_20250114
["timestamp","ask_amount","ask_price","bid_price","bid_amount"]
[1736819974516,0.63091253,94927.0,94917.0,0.0527]
[1736819976123,0.63091253,94927.0,94915.0,0.3608]
[1736819976322,0.63091253,94927.0,94916.0,0.0315]
[1736819976618,0.63091253,94927.0,94920.0,0.052699]
[1736819978822,0.63091253,94927.0,94916.0,0.0315]
[1736819979115,0.56088634,94927.0,94917.0,0.14005238]
[1736819979322,0.01108634,94927.0,94925.0,0.052696]
[1736819979514,0.3608,94934.0,94926.0,0.0318]
[1736819979820,0.07002619,94940.0,94930.0,0.052693]
[1736819980020,0.10002619,94940.0,94930.0,0.052693]
[1736819980522,0.11117338,94940.0,94932.0,0.052692]
[1736819981419,0.11117338,94940.0,94926.0,0.084496]
[1736819981420,0.3608,94935.0,94926.0,0.084496]
[1736819981720,0.3908,94935.0,94930.0,0.001]
[1736819982114,0.3908,94935.0,94932.0,0.001]
[1736819984018,0.03,94935.0,94933.0,0.052692]
[1736819984214,0.01114719,94940.0,94936.0,0.05269]
[1736819984420,0.57402552,94946.0,94934.0,0.0315]
[1736819984616,0.3708,94944.0,94937.0,0.052689]
[1736819985217,0.3708,94944.0,94935.0,0.0317]
[1736819985218,0.3608,94944.0,94935.0,0.0317]
[1736819985418,0.3608,94944.0,94940.0,0.052688]
[1736819985722,0.00158052,94946.0,94940.0,0.413488]
[1736819985917,0.01276528,94946.0,94944.0,0.052686]
[1736819986238,0.00158052,94946.0,94945.0,0.0326]
[1736819987629,0.00158052,94946.0,94945.0,0.0336]
[1736819990324,0.01107863,94950.0,94945.0,0.0336]
[1736819990520,0.3608,94957.0,94945.0,0.0336]
[1736819990825,0.3608,94957.0,94949.0,0.052683]
[1736819992223,0.3608,94957.0,94949.0,0.053683]
[1736819993819,0.3708,94957.0,94949.0,0.001]
[1736819994015,0.052682,94951.0,94949.0,0.001]
[1736819994232,0.062682,94951.0,94949.0,0.001]
[1736819995722,0.01,94951.0,94936.0,0.0315]
[1736819996028,0.46748098,94946.0,94937.0,0.052689]
[1736819996529,0.47748098,94946.0,94937.0,0.052689]
[1736819998017,0.48868184,94946.0,94937.0,0.053689]
[1736820000130,0.48868184,94946.0,94937.0,0.001]
[1736820000327,0.052689,94939.0,94932.0,0.3608]
[1736820000528,0.062689,94939.0,94932.0,0.3608]
[1736820001029,0.052689,94939.0,94932.0,0.3608]
[1736820001239,0.01120086,94946.0,94945.0,0.052685]
[1736820001425,0.3608,94957.0,94941.0,0.3608]
[1736820001630,0.3608,94957.0,94947.0,0.10668098]
[1736820002126,0.0631,94968.0,94960.0,0.052677]
[1736820002327,0.01116036,94968.0,94962.0,0.052675]
[1736820002635,0.51972,94970.0,94958.0,0.10668098]
[1736820002934,0.51972,94970.0,94969.0,0.052672]
[1736820003932,0.53077328,94970.0,94969.0,0.052672]
[1736820004132,0.53077328,94970.0,94969.0,0.061672]
[1736820004636,0.3608,94976.0,94969.0,0.009]
[1736820004830,0.37182372,94976.0,94973.0,0.052669]
[1736820005229,0.37182372,94976.0,94970.0,0.0654]
[1736820005529,0.37182372,94976.0,94974.0,0.052668]
[1736820006528,0.01102372,94976.0,94974.0,0.052668]
[1736820006740,0.3608,94981.0,94974.0,0.052668]
[1736820006939,0.3608,94981.0,94974.0,0.061668]
[1736820007126,0.3608,94981.0,94974.0,0.009]
[1736820007325,0.3608,94981.0,94975.0,0.052668]
[1736820008839,0.37200438,94981.0,94975.0,0.052668]
[1736820009239,0.37200438,94981.0,94974.0,0.018]
[1736820009542,0.43467038,94981.0,94975.0,0.009]
[1736820009747,0.42467038,94981.0,94975.0,0.009]
[1736820010439,0.42467038,94981.0,94975.0,0.018]
[1736820011444,0.43467038,94981.0,94975.0,0.018]
[1736820011945,0.43467038,94981.0,94975.0,0.009]
[1736820012939,0.43467038,94981.0,94975.0,0.018]
[1736820013135,0.38200438,94981.0,94975.0,0.018]
[1736820013548,0.01120438,94981.0,94975.0,0.018]
[1736820013846,0.052657,94996.0,94980.0,0.052666]
[1736820014046,0.66041397,94995.0,94983.0,0.3608]
[1736820014638,0.71307197,94995.0,94983.0,0.3608]
[1736820015645,0.71307197,94995.0,94983.0,0.3698]
[1736820016342,0.66041397,94995.0,94983.0,0.3788]
[1736820017041,0.66041397,94995.0,94983.0,0.3698]
[1736820017248,0.66041397,94995.0,94983.0,0.3788]
[1736820018546,0.66041397,94995.0,94983.0,0.3698]
[1736820018748,0.66041397,94995.0,94983.0,0.3758]
[1736820019048,0.71307197,94995.0,94983.0,0.3758]
[1736820020746,0.10668098,94993.0,94983.0,0.3758]
[1736820021050,0.58307197,94995.0,94983.0,0.3758]
[1736820021241,0.59307197,94995.0,94983.0,0.3758]
[1736820021549,0.052663,94985.0,94983.0,0.015]
[1736820021743,0.062663,94985.0,94983.0,0.015]
[1736820021940,0.052663,94985.0,94983.0,0.009]
[1736820022336,0.0301,94988.0,94983.0,0.009]
[1736820022550,0.1,95000.0,94986.0,0.052662]
[1736820022747,0.55041397,94995.0,94987.0,0.112961]
[1736820023648,0.12976253,94999.0,94992.0,0.3608]
[1736820023950,0.1,95000.0,94997.0,0.052656]
[1736820024537,0.1,95000.0,94992.0,0.3608]
[1736820025847,0.052658,94994.0,94992.0,0.3608]
[1736820026147,0.052658,94994.0,94992.0,0.3638]
[1736820026346,0.3608,94993.0,94992.0,0.003]
[1736820026548,0.5008,94993.0,94971.0,0.0625]
[1736820026845,0.052668,94977.0,94961.0,0.052676]
[1736820027152,0.10668098,94975.0,94967.0,0.052672]
[1736820027847,0.10668098,94975.0,94971.0,0.001]
[1736820028050,0.10668098,94981.0,94971.0,0.001]
[1736820028246,0.10668098,94981.0,94967.0,0.052672]
[1736820028446,0.10668098,94981.0,94967.0,0.001]
[1736820028646,0.10668098,94981.0,94969.0,0.052672]
[1736820028848,0.3608,94982.0,94967.0,0.001]
[1736820029054,0.3608,94982.0,94977.0,0.052667]
[1736820029456,0.10668098,94990.0,94977.0,0.052667]
[1736820029955,0.10668098,94990.0,94978.0,0.0644]
[1736820030151,0.004,94982.0,94978.0,0.0644]
[1736820030755,0.004,94982.0,94978.0,0.117066]
[1736820030945,0.11168098,94990.0,94978.0,0.117066]
[1736820031270,0.12230653,94990.0,94979.0,0.052666]
[1736820032145,0.01562555,94990.0,94982.0,0.052664]
[1736820032552,0.01562555,94990.0,94984.0,0.052663]
[1736820032854,0.005,94990.0,94985.0,0.052663]
[1736820033053,0.083856,94999.0,94985.0,0.052663]
[1736820033249,0.09448046,94999.0,94985.0,0.052663]
[1736820033547,0.09448046,94999.0,94981.0,0.0331]
[1736820033548,0.04182446,94999.0,94981.0,0.0331]
[1736820033751,0.01062446,94999.0,94991.0,0.052659]
[1736820033944,0.1,95000.0,94991.0,0.052659]
[1736820034948,0.1,95000.0,94981.0,0.0471]
[1736820034949,0.1107711,95000.0,94981.0,0.0471]
[1736820035142,0.1107711,95000.0,94994.0,0.052658]
[1736820035347,0.1107711,95000.0,94990.0,0.10668098]
[1736820035653,0.1,95000.0,94998.0,0.052655]
[1736820036958,0.1,95000.0,94999.0,0.0635]
[1736820038050,0.1,95000.0,94999.0,0.0725]
[1736820038955,0.1,95000.0,94999.0,0.018]
[1736820044858,0.1,95000.0,94999.0,0.3788]
[1736820045255,0.1,95000.0,94999.0,0.4106]
[1736820045562,0.1,95000.0,94999.0,0.4046]
[1736820049758,0.3608,95016.0,95010.0,0.052648]
[1736820049964,0.4908,95016.0,95010.0,0.052648]
[1736820050264,0.13,95016.0,95010.0,0.052648]
[1736820050461,0.14095134,95016.0,95014.0,0.052646]
[1736820051864,0.14095134,95016.0,95014.0,0.061646]
[1736820053068,0.14095134,95016.0,95014.0,0.064646]
[1736820056760,0.14095134,95016.0,95014.0,0.012]
[1736820057157,0.0625,95015.0,95014.0,0.012]
[1736820057356,0.0825,95015.0,95014.0,0.012]
[1736820058364,0.0825,95015.0,95014.0,0.003]
[1736820058558,0.0825,95015.0,95014.0,0.012]
[1736820059062,0.3608,95020.0,95014.0,0.012]
[1736820059263,0.3608,95020.0,95018.0,0.052644]
[1736820062070,0.3608,95020.0,95018.0,0.061644]
[1736820062267,0.3708,95020.0,95018.0,0.018]
[1736820065465,0.3708,95020.0,95018.0,0.070644]
[1736820066665,0.01,95020.0,95018.0,0.070644]
[1736820067066,0.0326,95039.0,95027.0,0.052639]
[1736820067265,0.01084647,95034.0,95033.0,0.052636]
[1736820067473,0.00157884,95040.0,95020.0,0.0318]
[1736820067672,0.08157884,95040.0,95030.0,0.10668098]
[1736820068068,0.00157884,95040.0,95039.0,0.052633]
[1736820068977,0.01245138,95040.0,95039.0,0.052633]
[1736820069271,0.02245138,95040.0,95039.0,0.061633]
[1736820069470,0.02245138,95040.0,95039.0,0.070633]
[1736820069871,0.15210379,95040.0,95039.0,0.070633]
[1736820070069,0.15210379,95040.0,95039.0,0.06356971]
[1736820070269,0.01245138,95040.0,95039.0,0.06356971]
[1736820070468,0.00157884,95040.0,95039.0,0.06356971]
[1736820071074,0.12965241,95042.0,95039.0,0.018]
[1736820071269,0.3608,95060.0,95041.0,0.052632]
[1736820071469,0.3608,95060.0,95042.0,0.0612]
[1736820072275,0.46748098,95060.0,95042.0,0.0612]
[1736820072569,0.3608,95060.0,95042.0,0.0612]
[1736820072771,0.5008,95060.0,95042.0,0.0622]
[1736820073079,0.5008,95060.0,95053.0,0.052624]
[1736820073278,0.51162613,95060.0,95053.0,0.052624]
[1736820074475,0.052623,95057.0,95045.0,0.052629]
[1736820074672,0.10668098,95055.0,95042.0,0.0672]
[1736820074978,0.10668098,95055.0,95042.0,0.0762]
[1736820074979,0.052625,95054.0,95042.0,0.0762]
[1736820075378,0.052625,95054.0,95042.0,0.0702]
[1736820075574,0.052625,95054.0,95053.0,0.004]
[1736820075775,0.052625,95054.0,95053.0,0.013]
[1736820076171,0.052625,95054.0,95053.0,0.009]
[1736820077179,0.062625,95054.0,95053.0,0.009]
[1736820077482,0.01,95054.0,95042.0,0.0622]
[1736820077674,0.01,95054.0,95049.0,0.052627]
[1736820077981,0.01,95054.0,95053.0,0.001]
[1736820078371,0.01,95054.0,95053.0,0.002]
[1736820079476,0.01,95054.0,95053.0,0.001]
[1736820081168,0.01,95054.0,95053.0,0.002]
[1736820084585,0.01,95054.0,95053.0,0.001]
[1736820087687,0.01,95054.0,95052.0,0.052625]
[1736820087986,0.01,95054.0,95053.0,0.001]
[1736820088983,0.01,95054.0,95030.0,0.00157839]
[1736820088984,0.052637,95031.0,95030.0,0.00157839]
[1736820089178,0.3608,95031.0,95009.0,0.3608]
[1736820089378,0.3608,95018.0,95009.0,0.3608]
[1736820089980,0.052646,95015.0,95009.0,0.3608]
[1736820091187,0.052647,95014.0,95009.0,0.3608]
[1736820091980,0.008,95015.0,95009.0,0.3608]
[1736820092286,0.003,95014.0,95008.0,0.05265]
[1736820092488,0.008,95014.0,95013.0,0.052647]
[1736820092788,0.008,95014.0,95013.0,0.413447]
[1736820092986,0.008,95014.0,95013.0,0.052647]
[1736820093984,0.005,95014.0,95013.0,0.052647]
[1736820094289,0.01081319,95033.0,95013.0,0.01095169]
[1736820094488,0.01,95033.0,95020.0,0.46748098]
[1736820094692,0.01,95033.0,95022.0,0.052642]
[1736820094887,0.01,95033.0,95028.0,0.052638]
[1736820095085,0.052636,95034.0,95028.0,0.052638]
[1736820095686,0.052638,95029.0,95021.0,0.0636]
[1736820095996,0.052638,95029.0,95022.0,0.001]
[1736820096385,0.052638,95029.0,95021.0,0.0303]
[1736820096892,0.052639,95027.0,95021.0,0.0303]
[1736820097088,0.05264,95026.0,95021.0,0.0303]
[1736820097390,0.05264,95026.0,95021.0,0.082942]
[1736820098385,0.3608,95025.0,95021.0,0.0303]
[1736820098589,0.3608,95025.0,95022.0,0.052642]
[1736820098793,0.3608,95025.0,95023.0,0.052641]
[1736820100092,0.052639,95029.0,95023.0,0.052641]
[1736820100286,0.3608,95025.0,95021.0,0.0303]
[1736820100591,0.052642,95023.0,95016.0,0.052645]
[1736820100793,0.02,95023.0,95012.0,0.0329]
[1736820100990,0.052646,95015.0,95010.0,0.0305]
[1736820101685,0.052646,95015.0,95011.0,0.052648]
[1736820101884,0.052646,95015.0,95012.0,0.001]
[1736820102590,0.056646,95015.0,95011.0,0.052648]
[1736820102998,0.052646,95015.0,95011.0,0.052648]
[1736820103189,0.057646,95015.0,95011.0,0.052648]
[1736820104797,0.057646,95015.0,95010.0,0.0305]
[1736820104997,0.057646,95015.0,95012.0,0.052647]
[1736820105199,0.056646,95015.0,95012.0,0.052647]
[1736820105494,0.004,95015.0,95012.0,0.052647]
[1736820105797,0.004,95015.0,95014.0,0.052646]
[1736820106304,0.3608,95025.0,95021.0,0.052642]
[1736820106495,0.3608,95025.0,95010.0,0.0305]
[1736820106701,0.3608,95025.0,95023.0,0.052641]
[1736820107797,0.00157892,95045.0,95024.0,0.0633]
[1736820107992,0.3708,95042.0,95041.0,0.052631]
[1736820109201,0.38135772,95042.0,95041.0,0.052631]
[1736820109700,0.38135772,95042.0,95041.0,0.053631]
[1736820109701,0.38635772,95042.0,95041.0,0.053631]
[1736820110091,0.38635772,95042.0,95041.0,0.001]
[1736820110298,0.43898872,95042.0,95041.0,0.001]
[1736820111202,0.38635772,95042.0,95013.0,0.4215]
[1736820111505,0.10668098,95023.0,95021.0,0.052643]
[1736820111694,0.3608,95026.0,95021.0,0.052643]
[1736820111890,0.3608,95026.0,95013.0,0.4215]
[1736820111891,0.3708,95026.0,95023.0,0.052641]
[1736820113102,0.3748,95026.0,95023.0,0.052641]
[1736820113405,0.3748,95026.0,95016.0,0.052645]
[1736820113795,0.3748,95026.0,95017.0,0.052645]
[1736820114292,0.3855594,95026.0,95017.0,0.052645]
[1736820115404,0.3865594,95026.0,95017.0,0.052645]
[1736820115807,0.3865594,95026.0,95018.0,0.052644]
[1736820116608,0.3865594,95026.0,95013.0,0.39218]
[1736820116806,0.3865594,95026.0,95019.0,0.052643]
[1736820117506,0.3865594,95026.0,95013.0,0.39218]
[1736820117507,0.3865594,95026.0,95014.0,0.052646]
[1736820118006,0.3865594,95026.0,95022.0,0.052641]
[1736820118200,0.3865594,95026.0,95023.0,0.052641]
[1736820119207,0.3855594,95026.0,95023.0,0.052641]
[1736820119695,0.3815594,95026.0,95023.0,0.052641]
[1736820119902,0.0247594,95026.0,95023.0,0.052641]
[1736820120097,0.3608,95024.0,95015.0,0.052646]
[1736820120302,0.5108,95024.0,95011.0,0.00157868]
[1736820120608,0.052648,95012.0,95011.0,0.00157868]
[1736820120810,0.052648,95012.0,94978.0,0.3608]
[1736820120811,0.17,95012.0,94993.0,0.032]
[1736820121009,0.3608,95002.0,94996.0,0.052656]
[1736820121319,0.3608,95002.0,94997.0,0.052655]
[1736820121605,0.3608,95002.0,94993.0,0.032]
[1736820121806,0.3608,95002.0,94991.0,0.052659]
[1736820122006,0.3608,94994.0,94984.0,0.052663]
[1736820122305,0.46748098,94994.0,94976.0,0.0316]
[1736820122508,0.10668098,94986.0,94977.0,0.052667]
[1736820122710,0.10668098,94986.0,94965.0,0.01072393]
[1736820122711,0.3608,94981.0,94957.0,0.3608]
[1736820122913,0.3608,94981.0,94972.0,0.05267]
[1736820123309,0.3608,94981.0,94959.0,0.0109165]
[1736820123606,0.3608,94981.0,94968.0,0.052671]
[1736820123811,0.3608,94981.0,94958.0,0.0959]
[1736820124009,0.11334668,94980.0,94971.0,0.05267]
[1736820125221,0.11334668,94980.0,94967.0,0.3608]
[1736820125718,0.11534668,94980.0,94967.0,0.3608]
[1736820126103,0.11634668,94980.0,94968.0,0.052671]
[1736820126911,0.11634668,94980.0,94959.0,0.052676]
[1736820127216,0.11634668,94980.0,94962.0,0.052675]
[1736820127609,0.16901268,94980.0,94962.0,0.052675]
[1736820128114,0.052667,94976.0,94962.0,0.052675]
[1736820128915,0.052669,94975.0,94962.0,0.052675]
[1736820129112,0.3608,94970.0,94958.0,0.0959]
[1736820129523,0.3608,94961.0,94958.0,0.0959]
[1736820129816,0.3608,94961.0,94948.0,0.052683]
[1736820130012,0.3608,94953.0,94948.0,0.052683]
[1736820131020,0.3608,94953.0,94941.0,0.0961]
[1736820131215,0.10668098,94951.0,94941.0,0.0961]
[1736820132220,0.10668098,94951.0,94948.0,0.003]
[1736820132419,0.3608,94953.0,94948.0,0.003]
[1736820132921,0.3608,94953.0,94949.0,0.052682]
[1736820133413,0.17448039,94952.0,94949.0,0.052682]
[1736820133823,0.17448039,94952.0,94941.0,0.1001]
[1736820134113,0.10668098,94951.0,94941.0,0.1001]
[1736820134319,0.28220073,94950.0,94945.0,0.052685]
[1736820134920,0.28220073,94950.0,94949.0,0.052682]
[1736820136333,0.07742582,94950.0,94949.0,0.052682]
[1736820136514,0.13849981,94950.0,94949.0,0.052682]
[1736820137317,0.23554695,94950.0,94949.0,0.052682]
[1736820137515,0.23554695,94950.0,94945.0,0.29250822]
[1736820137818,0.23554695,94950.0,94949.0,0.052682]
[1736820138015,0.54925203,94950.0,94949.0,0.052682]
[1736820138322,0.54925203,94950.0,94949.0,0.055682]
[1736820139024,0.48917804,94950.0,94949.0,0.053682]
[1736820139216,0.33947804,94950.0,94949.0,0.053682]
[1736820139719,0.33847804,94950.0,94949.0,0.053682]
[1736820140121,0.33847804,94950.0,94949.0,0.414482]
[1736820140423,0.31370508,94950.0,94949.0,0.414482]
[1736820140619,0.31370508,94950.0,94949.0,0.415482]
[1736820141321,0.31370508,94950.0,94949.0,0.418482]
[1736820141825,0.31370508,94950.0,94949.0,0.416482]
[1736820142324,0.31370508,94950.0,94949.0,0.413482]
[1736820144919,0.31570508,94950.0,94949.0,0.413482]
[1736820145425,0.31670508,94950.0,94949.0,0.413482]
[1736820146018,0.31470508,94950.0,94949.0,0.413482]
[1736820146218,0.31370508,94950.0,94949.0,0.413482]
[1736820147315,0.41074607,94950.0,94949.0,0.413482]
[1736820148120,0.41074607,94950.0,94949.0,0.415482]
[1736820148422,0.48816824,94950.0,94949.0,0.415482]
[1736820148627,0.48816824,94950.0,94949.0,0.413482]
[1736820148924,0.20665259,94957.0,94956.0,0.052678]
[1736820149128,0.08505259,94957.0,94956.0,0.413478]
[1736820149327,0.08505259,94957.0,94956.0,1.2966085]
[1736820149328,0.03555259,94957.0,94956.0,1.2966085]
[1736820149529,5.9e-07,94957.0,94956.0,1.2966085]
[1736820150534,0.11759071,94990.0,94960.0,0.5821305]
[1736820150832,0.01090973,94990.0,94975.0,0.3608]
[1736820151033,0.3608,94993.0,94990.0,0.052659]
[1736820152033,0.37142583,94993.0,94992.0,0.052658]
[1736820152533,0.37342583,94993.0,94992.0,0.052658]
[1736820153528,0.3648,94993.0,94992.0,0.052658]
[1736820153927,0.47815089,94993.0,94992.0,0.052658]
[1736820154529,0.47915089,94993.0,94992.0,0.053658]
[1736820155126,0.3658,94993.0,94992.0,0.053658]
[1736820156830,0.3658,94993.0,94992.0,0.001]
[1736820157035,0.3658,94993.0,94979.0,0.01060985]
[1736820157236,0.3658,94993.0,94976.0,0.052667]
[1736820157535,0.10668098,94990.0,94984.0,0.052663]
[1736820157732,0.10668098,94990.0,94970.0,0.10668098]
[1736820158036,0.10668098,94990.0,94985.0,0.052662]
[1736820158425,0.052665,94981.0,94973.0,0.052669]
[1736820158633,0.3608,94979.0,94974.0,0.052668]
[1736820158845,0.05267,94972.0,94967.0,0.052672]
[1736820159140,0.05267,94972.0,94964.0,0.0015795]
[1736820159433,0.10668098,94977.0,94964.0,0.0015795]
[1736820159639,0.10668098,94977.0,94973.0,0.001]
[1736820159935,0.052667,94977.0,94973.0,0.001]
[1736820160139,0.0622,94976.0,94973.0,0.001]
[1736820161329,0.0622,94976.0,94972.0,0.052669]
[1736820161643,0.11337038,94975.0,94965.0,0.052673]
[1736820161934,0.14597038,94975.0,94967.0,0.052672]
[1736820162139,0.14597038,94975.0,94973.0,0.001]
[1736820162530,0.14597038,94975.0,94972.0,0.001]
[1736820162730,0.14797038,94975.0,94972.0,0.001]
[1736820162933,0.14797038,94975.0,94973.0,0.052669]
[1736820163738,0.15297038,94975.0,94973.0,0.052669]
[1736820164038,0.15297038,94975.0,94966.0,0.052673]
[1736820164439,0.20563838,94975.0,94966.0,0.052673]
[1736820165133,0.20563838,94975.0,94964.0,0.0015795]
[1736820165134,0.3608,94970.0,94964.0,0.0015795]
[1736820165333,0.5008,94970.0,94964.0,0.0015795]
[1736820165934,0.3608,94970.0,94964.0,0.0015795]
[1736820166127,0.3608,94970.0,94965.0,0.052673]
[1736820166128,0.11337038,94969.0,94965.0,0.052673]
[1736820168342,0.11937038,94969.0,94965.0,0.052673]
[1736820169740,0.11937038,94969.0,94967.0,0.052672]
[1736820170935,0.006,94969.0,94967.0,0.052672]
[1736820171633,0.002,94969.0,94967.0,0.052672]
[1736820171829,0.007,94969.0,94967.0,0.052672]
[1736820180438,0.052673,94966.0,94960.0,0.052676]
[1736820180643,0.052677,94959.0,94953.0,0.05268]
[1736820180843,0.052679,94955.0,94948.0,0.00157967]
[1736820181144,0.14388,94954.0,94948.0,0.00157967]
[1736820181540,0.0912,94954.0,94947.0,0.052683]
[1736820181748,0.052681,94951.0,94939.0,0.052688]
[1736820181951,0.052681,94951.0,94942.0,0.052686]
[1736820182849,0.052681,94951.0,94949.0,0.3618]
[1736820183046,0.052681,94951.0,94949.0,0.3648]
[1736820184446,0.06325665,94951.0,94949.0,0.3648]
[1736820184745,0.01057565,94951.0,94949.0,0.3648]
[1736820184946,0.11337038,94953.0,94949.0,0.417482]
[1736820185145,0.11337038,94950.0,94949.0,0.417482]
[1736820185744,0.11337038,94950.0,94949.0,0.3648]
[1736820185952,0.052682,94950.0,94949.0,0.3648]
[1736820186246,0.192682,94950.0,94949.0,0.3648]
[1736820186549,0.052682,94950.0,94949.0,0.3648]
[1736820187448,0.052682,94950.0,94949.0,0.004]
[1736820187851,0.10184168,94954.0,94949.0,0.004]
[1736820188551,0.15452168,94954.0,94949.0,0.004]
[1736820190643,0.11339622,94953.0,94949.0,0.004]
[1736820191053,0.11339622,94953.0,94949.0,0.056682]
[1736820192040,0.11339622,94953.0,94951.0,0.052681]
[1736820193749,0.11339622,94953.0,94952.0,0.001]
[1736820193954,0.06349622,94953.0,94952.0,0.001]
[1736820194156,0.06349622,94953.0,94952.0,0.301]
[1736820194450,0.0634,94968.0,94952.0,0.301]
[1736820194760,0.0634,94968.0,94967.0,0.052672]
[1736820196356,0.0684,94968.0,94967.0,0.052672]
[1736820196547,0.0704,94968.0,94967.0,0.052672]
[1736820197055,0.18377321,94968.0,94967.0,0.052672]
[1736820201452,1.00457321,94968.0,94936.0,0.3608]
[1736820201655,0.052683,94947.0,94940.0,0.052687]
[1736820201852,0.3608,94953.0,94940.0,0.052687]
[1736820201853,0.084284,94946.0,94940.0,0.052687]
[1736820202854,0.084284,94946.0,94934.0,0.00157991]
[1736820203051,0.0316,94946.0,94940.0,0.007]
[1736820203246,0.0316,94946.0,94942.0,0.052686]
[1736820204354,0.3608,94943.0,94940.0,0.009]
[1736820204554,0.05269,94935.0,94928.0,0.052694]
[1736820204756,0.0311,94934.0,94928.0,0.052694]
[1736820204958,0.0311,94934.0,94913.0,0.3608]
[1736820205152,0.052691,94933.0,94914.0,0.01059802]
[1736820205860,0.052691,94933.0,94928.0,0.009]
[1736820206165,0.16609758,94933.0,94928.0,0.013]
[1736820206362,0.16609758,94933.0,94928.0,0.004]
[1736820206848,0.16609758,94933.0,94926.0,0.3748]
[1736820208863,0.16609758,94933.0,94926.0,0.3698]
[1736820209061,0.52789758,94933.0,94928.0,0.013]
[1736820209450,0.52689758,94933.0,94928.0,0.004]
[1736820209765,0.52789758,94933.0,94926.0,0.013]
[1736820209969,0.66789758,94933.0,94926.0,0.013]
[1736820210158,0.16609858,94932.0,94928.0,0.009]
[1736820210459,0.30609858,94932.0,94928.0,0.009]
[1736820210666,0.052693,94930.0,94928.0,0.013]
[1736820211653,0.202693,94930.0,94928.0,0.013]
[1736820211863,0.052693,94930.0,94928.0,0.013]
[1736820212356,0.11340658,94932.0,94928.0,0.013]
[1736820212662,0.11440658,94932.0,94928.0,0.013]
[1736820213258,0.001,94930.0,94928.0,0.013]
[1736820213968,0.11440658,94932.0,94928.0,0.013]
[1736820215267,0.001,94932.0,94928.0,0.013]
[1736820215467,0.001,94930.0,94928.0,0.013]
[1736820216067,0.001,94932.0,94928.0,0.013]
[1736820216768,0.001,94930.0,94928.0,0.013]
[1736820217162,0.11340658,94933.0,94928.0,0.004]
[1736820217364,0.001,94932.0,94928.0,0.013]
[1736820218970,0.001,94932.0,94928.0,0.065693]
[1736820219362,0.001,94930.0,94928.0,0.065693]
[1736820219671,0.001,94930.0,94928.0,0.013]
[1736820219872,0.053692,94932.0,94928.0,0.013]
[1736820220565,0.001,94930.0,94928.0,0.013]
[1736820221678,0.001,94930.0,94928.0,0.065694]
[1736820222067,0.001,94930.0,94928.0,0.056694]
[1736820222269,0.001,94932.0,94928.0,0.065694]
[1736820222770,0.001,94930.0,94928.0,0.065694]
[1736820223372,0.001,94930.0,94928.0,0.074694]
[1736820224072,0.04175623,94934.0,94928.0,0.056694]
[1736820224671,0.06175623,94934.0,94928.0,0.056694]
[1736820225473,0.11444723,94934.0,94928.0,0.056694]
[1736820225771,0.11444723,94934.0,94928.0,0.052694]
[1736820226078,0.11544723,94934.0,94928.0,0.065694]
[1736820226273,0.06275623,94934.0,94928.0,0.013]
[1736820226479,0.052693,94929.0,94928.0,0.013]
[1736820226978,0.202693,94929.0,94928.0,0.013]
[1736820227674,0.052693,94929.0,94928.0,0.013]
[1736820228072,0.16611674,94929.0,94928.0,0.013]
[1736820228576,0.16611674,94929.0,94928.0,0.004]
[1736820228777,0.16711674,94929.0,94928.0,0.013]
[1736820228971,0.16711674,94929.0,94928.0,0.011]
[1736820229173,0.053693,94929.0,94928.0,0.011]
[1736820229472,0.053693,94929.0,94928.0,0.009]
[1736820232778,0.001,94929.0,94928.0,0.009]
[1736820233174,0.11126417,94933.0,94932.0,0.052692]
[1736820233371,0.11126417,94933.0,94932.0,0.413492]
[1736820233570,0.13858098,94942.0,94939.0,0.052688]
[1736820233886,0.0319,94942.0,94939.0,0.052688]
[1736820235876,0.0319,94942.0,94939.0,0.054688]
[1736820237284,0.14530972,94942.0,94939.0,0.002]
[1736820237482,0.14530972,94942.0,94940.0,0.052687]
[1736820238386,0.0319,94942.0,94940.0,0.052687]
[1736820238572,0.0319,94942.0,94940.0,0.022687]
[1736820238978,0.0319,94942.0,94940.0,0.023687]
[1736820240984,0.11340972,94944.0,94943.0,0.052685]
[1736820241575,0.11340972,94945.0,94943.0,0.052685]
[1736820242179,0.11340972,94949.0,94943.0,0.052685]
[1736820242580,0.052683,94948.0,94943.0,0.052685]
[1736820242888,0.084284,94946.0,94943.0,0.052685]
[1736820243088,0.084284,94946.0,94944.0,0.052685]
[1736820243290,0.0316,94946.0,94944.0,0.052685]
[1736820245082,0.0316,94946.0,94945.0,0.3608]
[1736820245283,0.11340972,94949.0,94948.0,0.052683]
[1736820245479,0.00158027,94951.0,94950.0,0.052682]
[1736820246485,0.0312,94962.0,94956.0,0.052678]
[1736820246685,0.01049623,94960.0,94956.0,0.052678]
[1736820247289,0.11338596,94959.0,94956.0,0.052678]
[1736820248198,0.01049623,94960.0,94956.0,0.052678]
[1736820248998,0.032,94958.0,94956.0,0.052678]
[1736820249298,0.033,94958.0,94956.0,0.052678]
[1736820249790,0.032,94958.0,94956.0,0.052678]
[1736820249990,0.033,94958.0,94956.0,0.052678]
[1736820250186,0.0323,94957.0,94956.0,0.052678]
[1736820251499,0.14568596,94957.0,94956.0,0.052678]
[1736820251890,0.11338596,94957.0,94956.0,0.052678]
[1736820252287,0.11638596,94957.0,94956.0,0.052678]
[1736820252490,0.003,94957.0,94956.0,0.052678]
[1736820252699,0.004,94957.0,94956.0,0.052678]
[1736820252894,0.004,94957.0,94956.0,0.053678]
[1736820253401,0.001,94957.0,94956.0,0.053678]
[1736820253695,0.002,94957.0,94956.0,0.053678]